[Event "Sardinia World Festival-A 2024"]
[Site "Orosei"]
[Date "2024.04.30"]
[Round "4.27"]
[White "Trost, Edvin"]
[Black "Kanyamarala, Tarun"]
[Result "1/2-1/2"]
[ECO "B41"]
[WhiteElo "2434"]
[BlackElo "2293"]
[Annotator "TA"]
[PlyCount "72"]
[EventDate "2024.04.26"]
[EventType "swiss"]
[EventCountry "ITA"]
[SourceTitle "playchess.com"]
[Source "ChessBase"]
[SourceQuality "1"]
[TimeControl "40/5400+30:1800+30"]

{[%evp 11,72,24,30,24,27,22,21,27,21,26,29,46,25,37,29,23,17,26,51,30,38,24,62,22,32,0,0,-1,144,140,135,143,139,140,147,148,135,144,147,146,143,81,269,-313,-313,-313,-313,-313,-313,-312,-312,-312,-312,-312,-312,-312,-312,-312,0,-239,0,-253,0]} 1. e4 {[%emt 0:03:16]} c5 {[%emt 0:00:12]} 2. Nf3 {[%emt 0:00:25]} e6 {[%emt 0:00:13]} 3. d4 {[%emt 0:02:04]} cxd4 {[%emt 0:00:12]} 4. Nxd4 {[%emt 0:00:04]} a6 {[%emt 0:00:10]} 5. c4 {[%emt 0:02:16]} Nf6 {[%emt 0:00:10]} 6. Nc3 {[%emt 0:00:06]} Bb4 {[%emt 0:00:14]} 7. Qd3 {[%emt 0:00:40]} d5 {[%emt 0:00:17]} 8. exd5 {[%emt 0:00:42]} exd5 {[%emt 0:00:13]} 9. Be2 {[%emt 0:00:07] The position is equal.} O-O {[%emt 0:00:24]} 10. O-O {[%emt 0:00:14]} Nc6 {[%emt 0:00:21] Threatens to win with ...dxc4.} 11. Nxc6 {[%emt 0:00:45]} (11. cxd5 {with more complications.} Nxd5 12. Nxc6 bxc6 13. Nxd5 Qxd5 14. Qg3) 11... bxc6 {[%emt 0:00:13]} 12. cxd5 {[%emt 0:00:05]} Nxd5 {[%emt 0:00:23]} 13. Nxd5 {[%emt 0:00:07]} Qxd5 {[%emt 0:00:13]} 14. Qg3 {[%emt 0:00:06]} (14. Qxd5 {simplifies} cxd5 15. Bf4 Be6 16. a3) 14... Bf5 {[%emt 0:07:38]} 15. Bf3 {[%emt 0:05:18]} Qe6 {[%emt 0:02:58]} 16. Bf4 {[%emt 0:02:51]} Rad8 {[%emt 0:06:42]} 17. Rfc1 {[%emt 0:09:28]} Rfe8 $1 {[%emt 0:12:51]} 18. Bxc6 {[%emt 0:04:25]} (18. Rxc6 $2 Qe1+ 19. Rxe1 Rxe1#) 18... Rd3 $1 {[%emt 0:01:04]} 19. Be3 $40 {[%emt 0:15:11][%mdl 128] [#] White attacks.} Bd2 {[%emt 0:16:29]} 20. Bxe8 $16 {[%emt 0:01:48][%cal Og3b8] aiming for Qb8!} Bxc1 {[%emt 0:00:28][%cal Rd3d1]} 21. Bxf7+ {[%emt 0:03:03]} Kxf7 {[%emt 0:03:14]} 22. Rxc1 {[%emt 0:02:10]} Qxa2 {[%emt 0:02:28]} 23. Qf4 {[%emt 0:15:15]} Qd5 {[%emt 0:00:49] ( -> ...Rd1+)} 24. h3 {[%emt 0:00:14]} Qe4 {[%emt 0:17:43]} 25. Rc7+ {[%emt 0:02:14]} Kg8 {[%emt 0:00:45]} 26. Qg5 {[%emt 0:01:48]} ({Don't take} 26. Rc8+ Kf7 27. Rc7+ Kg8) (26. Qg3 $142 {[%csl Gc7][%cal Rg3g7]} Bd7 27. Ra7) 26... Rd7 {[%emt 0:01:06] [#]} (26... Bd7 $16 {might work better.}) 27. Bd4 $4 {[%emt 0:02:50][%mdl 8192]} h6 $19 {[%emt 0:04:23]} 28. Rxd7 {[%emt 0:18:20]} hxg5 {[%emt 0:00:22]} 29. Rxg7+ {[%emt 0:00:02]} Kf8 {[%emt 0:00:27]} 30. Rxg5 {[%emt 0:00:48]} Qxd4 {[%emt 0:03:19]} 31. Rxf5+ {[%emt 0:00:09][%mdl 4096] Endgame. KQ-KR} Ke7 {[%emt 0:01:20]} 32. Ra5 {[%emt 0:01:00]} Qd1+ {[%emt 0:02:21]} (32... Qxb2 33. Rxa6 Qc1+ 34. Kh2 $17) 33. Kh2 {[%emt 0:00:01]} Qd6+ {[%emt 0:00:13]} 34. Kg1 {[%emt 0:06:36]} Qd1+ {[%emt 0:11:53]} 35. Kh2 {[%emt 0:00:01]} Qd6+ {[%emt 0:02:02]} 36. Kg1 {[%emt 0:00:51]} Qd1+ $2 {[%emt 0:00:41] Weighted Error Value: White=0.30/Black=0.45.  Loses game:     	White=1     	Black=1      Missed win:     	White=1     	Black=1      Mistake:       	White=1     	Black=1      Inaccurate:     	White=2     	Black=1      OK:         	White=13    	Black=9      Best:        	White=4     	Black=5      Strong:       	---       	Black=2} (36... Kd7 $19 37. Ra3 Qd1+ 38. Kh2 Qe2) 1/2-1/2

[Event "Sardinia World Festival-A 2024"]
[Site "Orosei"]
[Date "2024.04.30"]
[Round "4.28"]
[White "Van Zyl-Rudd, Jack"]
[Black "Kanov, Nikola"]
[Result "0-1"]
[ECO "D35"]
[WhiteElo "2261"]
[BlackElo "2423"]
[Annotator "RC"]
[PlyCount "76"]
[EventDate "2024.04.26"]
[EventType "swiss"]
[EventCountry "ITA"]
[SourceTitle "playchess.com"]
[Source "ChessBase"]
[SourceQuality "1"]
[TimeControl "40/5400+30:1800+30"]

1. d4 {[%emt 0:18:16]} Nf6 {[%emt 0:00:09]} 2. c4 {[%emt 0:00:04]} e6 {[%emt 0:00:24]} 3. Nc3 {[%emt 0:00:38]} d5 {[%emt 0:00:33]} 4. cxd5 {[%emt 0:00:05]} exd5 {[%emt 0:00:14]} 5. Bg5 {[%emt 0:00:14]} c6 {[%emt 0:00:14]} 6. e3 {[%emt 0:00:04]} Be6 {[%emt 0:00:15]} 7. Bd3 {[%emt 0:00:07]} Nbd7 {[%emt 0:00:22]} 8. Nge2 {[%emt 0:04:46]} h6 {[%emt 0:01:24]} 9. Bh4 {[%emt 0:00:38]} g5 {[%emt 0:03:58]} 10. Bg3 {[%emt 0:00:02]} Nh5 {[%emt 0:00:09]} 11. Qc2 {[%emt 0:03:10]} Nxg3 {[%emt 0:00:36]} 12. hxg3 {[%emt 0:00:27]} Qe7 {[%emt 0:06:41]} 13. O-O-O {[%emt 0:12:21]} O-O-O {[%emt 0:01:08]} 14. f3 {[%emt 0:01:21]} Kb8 {[%emt 0:02:59]} 15. g4 {[%emt 0:00:32]} Bg7 {[%emt 0:05:38]} 16. Kb1 {[%emt 0:07:51]} Rhe8 {[%emt 0:04:52]} 17. Na4 {[%emt 0:04:25]} Nb6 {[%emt 0:10:11]} 18. Nxb6 {[%emt 0:00:41]} axb6 {[%emt 0:00:04]} 19. Ng3 {[%emt 0:08:00]} Bc8 {[%emt 0:03:31]} 20. Bf5 {[%emt 0:01:15]} Qd6 {[%emt 0:10:06]} 21. Rh3 {[%emt 0:01:04]} Be6 {[%emt 0:01:18]} 22. Rc1 {[%emt 0:10:45]} Rc8 {[%emt 0:03:26]} 23. Qb3 {[%emt 0:19:32]} c5 {[%emt 0:02:41]} 24. Qa3 {[%emt 0:00:02]} Rc6 {[%emt 0:02:10]} 25. Bc2 {[%emt 0:02:47]} Rec8 {[%emt 0:03:33]} 26. Ba4 {[%emt 0:00:41]} R6c7 {[%emt 0:00:51]} 27. Ne2 {[%emt 0:00:53]} f5 {[%emt 0:03:05]} 28. Nc3 {[%emt 0:01:18]} Bd7 {[%emt 0:03:51]} 29. gxf5 {[%emt 0:01:29]} Bxf5+ {[%emt 0:07:43]} 30. Bc2 {[%emt 0:00:58]} Bd7 {[%emt 0:00:53]} 31. Rhh1 {[%emt 0:00:25]} Qe6 {[%emt 0:04:42]} 32. Rhd1 {[%emt 0:00:01]} Bf8 {[%emt 0:01:40]} 33. dxc5 {[%emt 0:01:17]} Rxc5 {[%emt 0:02:29]} 34. Qb3 {[%emt 0:00:13]} Bg7 {[%emt 0:02:18]} 35. Rxd5 {[%emt 0:00:43]} Rxc3 {[%emt 0:01:08]} 36. bxc3 {[%emt 0:00:11]} Rxc3 {[%emt 0:00:05]} 37. Qb4 {[%emt 0:01:08]} Qxd5 {[%emt 0:00:11]} 38. Rd1 {[%emt 0:00:05]} Qb5 {[%emt 0:00:49]} 0-1

[Event "Sardinia World Festival-A 2024"]
[Site "Orosei"]
[Date "2024.04.30"]
[Round "4.29"]
[White "Aizenberg, Benny"]
[Black "Iliaguev, Daniel"]
[Result "1-0"]
[ECO "E20"]
[WhiteElo "2409"]
[BlackElo "2177"]
[Annotator "TA"]
[PlyCount "75"]
[EventDate "2024.04.26"]
[EventType "swiss"]
[EventCountry "ITA"]
[SourceTitle "playchess.com"]
[Source "ChessBase"]
[SourceQuality "1"]
[TimeControl "40/5400+30:1800+30"]

{[%evp 11,75,-4,0,0,3,13,23,16,74,79,101,71,69,80,83,74,93,90,100,89,112,-57,-57,-108,-55,-113,-28,-27,-27,-14,-32,-52,-65,-64,-69,-140,-42,-175,-159,-159,-159,-167,18,23,95,10,16,18,200,0,387,368,1308,1355,1294,1270,29984,29985,29988,29989,29989,29990,29994,29995,32767,1319]} 1. d4 {[%emt 0:00:03]} Nf6 {[%emt 0:01:54]} 2. c4 {[%emt 0:00:09]} e6 {[%emt 0:00:08]} 3. Nc3 {[%emt 0:00:05]} Bb4 {[%emt 0:00:05]} 4. f3 {[%emt 0:00:07]} d5 {[%emt 0:11:11]} 5. a3 {[%emt 0:00:45]} Bxc3+ {[%emt 0:00:11]} 6. bxc3 {[%emt 0:00:05]} h6 {[%emt 0:02:28]} 7. cxd5 {[%emt 0:01:21]} exd5 {[%emt 0:00:10]} 8. e3 {[%emt 0:00:06][%cal Be2e3,Be3e4][%mdl 32]} b6 {[%emt 0:27:17]} 9. Bd3 {[%emt 0:00:20] White has an edge.} Qd7 {[%emt 0:00:01]} (9... c5 $11) 10. Ne2 $16 {[%emt 0:10:00]} Ba6 {[%emt 0:01:48]} 11. O-O {[%emt 0:00:08]} Bxd3 {[%emt 0:00:11]} 12. Qxd3 {[%emt 0:00:05]} Nc6 {[%emt 0:07:54][%cal Bb8c6,Bc6a5,Ba5c4][%mdl 32]} 13. e4 {[%emt 0:03:02]} O-O-O {[%emt 0:01:59]} 14. a4 {[%emt 0:08:42][%cal Oa4a5]} Na5 {[%emt 0:02:35]} 15. Ba3 {[%emt 0:03:18]} Nc4 {[%emt 0:00:07]} 16. Nf4 $2 {[%emt 0:04:25]} (16. e5 $16 Ne8 17. a5) 16... Nxa3 $1 $15 {[%emt 0:03:58] Excellent horsemanship.} 17. Qa6+ {[%emt 0:05:09]} (17. Rxa3 Qd6 18. Raa1 Qxf4 $19) 17... Kb8 {[%emt 0:00:13]} 18. Rxa3 {[%emt 0:00:05]} (18. e5 $1 $15 Nc2 19. Ra2) 18... Qd6 {[%emt 0:01:01]} (18... dxe4 $17 {...Qd6 is the strong threat.} 19. a5 g5) 19. Nd3 $1 $11 {[%emt 0:00:08]} dxe4 $1 {[%emt 0:10:48]} (19... Qxa3 $2 20. Nc5 $18) 20. Ne5 {[%emt 0:14:05][%cal Of1b1]} Rhe8 $36 {[%emt 0:21:44][%cal Bh8e8,Be8e5,Be5h5][%mdl 2080] White is under pressure.} (20... Qxa3 21. Nc6+ Ka8 22. Qxa7#) 21. a5 {[%emt 0:15:13] axb6 would now be deadly.} Rxe5 {[%emt 0:00:02]} (21... Qxa3 22. Nc6+ Ka8 23. Qxa7#) 22. axb6 {[%emt 0:00:06]} Rh5 $1 {[%emt 0:00:31]} 23. Qxa7+ {[%emt 0:04:27]} Kc8 {[%emt 0:00:01]} 24. b7+ {[%emt 0:00:15]} ({White should play} 24. h3 $1 $15 Qxb6 (24... cxb6 25. fxe4 Qc7 26. Qa6+ Qb7 27. Qxb7+ Kxb7 28. e5 $17) 25. fxe4 Qxa7 26. Rxa7) 24... Kd7 $17 {[%emt 0:00:02]} 25. g3 {[%emt 0:00:19]} exf3 {[%emt 0:04:56]} 26. c4 {[%emt 0:04:53][%cal Oa3b3] [#]} f2+ $2 {[%emt 0:00:57]} 27. Rxf2 $11 {[%emt 0:00:17] And now c5 would win.} Qb4 {[%emt 0:00:22] [#]} 28. Ra1 {[%emt 0:01:44]} (28. Qa8 $1 $16) 28... Re8 {[%emt 0:00:34]} 29. Qa8 {[%emt 0:01:15]} Re1+ $2 {[%emt 0:00:53]} (29... Qxc4 $11 {and Black stays safe.} 30. Qxe8+ (30. b8=B $2 Rb5 $19) (30. b8=Q Rxb8 31. Qxb8 Ng4 $11) 30... Nxe8) 30. Rf1 $2 {[%emt 0:00:04]} (30. Kg2 $18 {Hoping for Qc8+.} Re8 31. h4) 30... Rxf1+ $2 {[%emt 0:00:45][%mdl 8192]} (30... Rxa1 $11 {and Black is okay.} 31. b8=N+ (31. b8=Q Rxf1+ 32. Kxf1 Qxc4+ 33. Kg1 Qc1+ 34. Kg2 Qd2+ 35. Kg1 Qxh2+ 36. Kf1 Rf5+ 37. Ke1 Qxg3+ 38. Kd1 Rf1+ 39. Kc2 Rf2+ 40. Kd1 Qg1#) (31. Rxa1 Qd2 $11) 31... Kc8 32. Rxa1 (32. Na6+ Kd7 $11) 32... Qb7 (32... Qxb8 $2 33. Qc6 $18) 33. Qxb7+ Kxb7 34. Rb1+ Kc8) 31. Rxf1 $18 {[%emt 0:00:06]} Qd2 $2 {[%emt 0:00:35]} (31... Qb2 32. b8=N+ (32. b8=R $2 Qxh2#) (32. Qc8+ Kd6 $11) 32... Kd8 33. Na6+ Kd7 34. Nc5+ Rxc5 35. dxc5 Qe2) 32. Qc8+ {[%emt 0:00:18]} (32. b8=R $2 Qxh2#) (32. b8=N+ Ke7 33. Nc6+ Kd6 34. c5+ Kd7 35. Ne5+ Ke7 $11) 32... Kd6 {[%emt 0:00:15] [#]} 33. Qf8+ $1 {[%emt 0:02:42]} (33. b8=B $2 Qxh2#) 33... Ke6 {[%emt 0:00:02]} 34. d5+ {[%emt 0:00:31] ?ev?.} (34. b8=B $2 Qxh2#) (34. Rxf6+ Kxf6 35. Qe8 Qxd4+ (35... Qxh2+ 36. Kf1 Qh1+ 37. Ke2 Rh2+ 38. Kd3 Qb1+ 39. Ke3 Qe1+ 40. Kd3 Rd2+ 41. Kc3 Qc1+ 42. Kb4 Qb1+ 43. Ka5 Qb6+ 44. Ka4 Ra2#) 36. Kh1 Qd1+ (36... Qxc4 $2 37. Qe1 $19) (36... Qa1+ 37. Kg2 Qa2+ 38. Kg1 Qxh2+ 39. Kf1 Qh1+ 40. Ke2 Rh2+ 41. Kd3 Qb1+ 42. Ke3 Qe1+ 43. Kd4 Rd2+ 44. Kc5 Qg1+ 45. Kb4 Qb1+ 46. Ka5 Qb6+ 47. Ka4 Ra2#) 37. Kg2 Qc2+ 38. Kg1 Qxh2+ (38... Qxc4 $2 39. h4 $19) (38... Qb1+ 39. Kg2 Qa2+ 40. Kg1 Qxh2+ 41. Kf1 Qh1+ 42. Ke2 Rh2+ 43. Kd3 Qb1+ 44. Ke3 Qe1+ 45. Kd3 Rd2+ 46. Kc3 Qc1+ 47. Kb4 Qb1+ 48. Ka5 Qb6+ 49. Ka4 Ra2#) 39. Kf1 Qh1+ (39... Qxg3 $2 40. Qc6+ Ke7 41. Qe4+ Re5 42. Qxe5+ Qxe5 43. b8=Q $19) (39... Rf5+ 40. Ke1 Qg1+ 41. Kd2 Qd4+ 42. Ke1 Qa1+ 43. Ke2 Qf1+ 44. Kd2 Rf2+ 45. Ke3 Rf3+ 46. Kd4 Qd1+ 47. Kc5 Qd6+ 48. Kb5 Rb3+ 49. Ka5 Qb6+ 50. Ka4 Qb4#) 40. Ke2 Rh2+ (40... Qxb7 41. Qd8+ Kg6 42. Qd4 Qg2+ 43. Kd3 Qxg3+ 44. Qe3 Qd6+ 45. Kc2 Rh2+ 46. Kb3 Qd1+ 47. Ka3 Qa1+ 48. Kb4 Qb1+ 49. Qb3 c5+ 50. Kb5 Qxb3+ 51. Kc6 Qb8 52. Kd5 Rd2+ 53. Kxc5 Qd6+ 54. Kb5 Rb2+ 55. Ka5 Qa3#) 41. Kd3 Qb1+ (41... Qxb7 $2 42. Qe3 $19) 42. Ke3 Qe1+ (42... Qxb7 $2 43. Qb5 $19) 43. Kd4 Rd2+ (43... Qxe8 44. b8=B Rd2+ 45. Kc3 Qe3+ 46. Kb4 Rb2+ 47. Ka4 Qb3+ 48. Ka5 Qa3#) 44. Kc5 Qg1+ (44... Qxe8 45. Kb4 Rb2+ 46. Kc3 Qe5+ 47. Kd3 c5 48. g4 Qd4#) 45. Kb4 Qb1+ (45... Qxg3 $2 46. b8=Q $19) 46. Ka5 Qb6+ 47. Ka4 Ra2#) 34... Ke5 {[%emt 0:01:01]} 35. Qe7+ {[%emt 0:00:05]} (35. b8=B $2 Qxh2#) 35... Kd4 {[%emt 0:00:19]} 36. Rf4+ {[%emt 0:00:04]} (36. b8=B $2 Qxh2#) 36... Ne4 {[%emt 0:00:32]} 37. Qxe4+ {[%emt 0:00:12]} (37. b8=B {gets mated.} Qxh2+ 38. Kf1 Qh1+ (38... Qxg3 39. Qxe4+ Kc3 40. Rf3+) 39. Ke2 Rh2+) 37... Kc5 {[%emt 0:00:08]} 38. Qe7+ {[%emt 0:24:51] Weighted Error Value: White=0.40/Black=0.69.  Loses game:     	---       	Black=2      Missed win:     	White=1     	Black=1      Mistake:       	White=4     	Black=3      Inaccurate:     	---       	Black=2      OK:         	White=7     	Black=4      Best:        	White=4     	Black=3      Strong:       	White=1     	Black=3} 1-0

[Event "Sardinia World Festival-A 2024"]
[Site "Orosei"]
[Date "2024.04.30"]
[Round "4.30"]
[White "Cina`, Vittorio"]
[Black "Atanasov, Anthony"]
[Result "1/2-1/2"]
[ECO "A07"]
[WhiteElo "2165"]
[BlackElo "2407"]
[Annotator "TA"]
[PlyCount "97"]
[EventDate "2024.04.26"]
[EventType "swiss"]
[EventCountry "ITA"]
[SourceTitle "playchess.com"]
[Source "ChessBase"]
[SourceQuality "1"]
[TimeControl "40/5400+30:1800+30"]

{[%evp 10,97,29,40,69,74,81,70,69,31,25,18,21,22,90,85,85,89,89,50,74,50,62,30,116,114,154,138,145,116,119,118,114,122,122,72,77,24,15,16,15,14,17,14,34,39,27,29,52,35,35,29,56,52,50,29,41,23,64,75,60,75,80,75,72,57,65,50,45,56,56,40,136,75,74,2,2,2,2,2,2,2,2,2,2,2,2,2,2,2]} 1. Nf3 {[%emt 0:00:29]} d5 {[%emt 0:00:19]} 2. g3 {[%emt 0:00:04]} c6 {[%emt 0:00:27]} 3. Bg2 {[%emt 0:00:10]} Nf6 {[%emt 0:00:09]} 4. O-O {[%emt 0:00:37]} Bf5 {[%emt 0:01:08]} 5. d3 {[%emt 0:07:57]} h6 {[%emt 0:00:43]} 6. c4 {[%emt 0:01:09]} Nbd7 {[%emt 0:08:58]} 7. cxd5 {[%emt 0:06:06]} cxd5 {[%emt 0:00:10]} 8. Nc3 {[%emt 0:00:17][%cal Oe2e4] aiming for e4!} e6 {[%emt 0:01:20] White is slightly better.} 9. Qb3 {[%emt 0:25:08]} Nc5 {[%emt 0:09:49]} 10. Qc2 {[%emt 0:10:18]} Rc8 {[%emt 0:10:18]} 11. Be3 {[%emt 0:04:36]} a6 {[%emt 0:02:02]} (11... Be7 $11) 12. Rac1 {[%emt 0:07:36] Threatens to win with Na4.} Ncd7 {[%emt 0:21:02] [#]} 13. Qb3 $1 {[%emt 0:13:43]} b5 {[%emt 0:00:19]} 14. Nb1 {[%emt 0:04:32]} Bd6 {[%emt 0:10:16]} 15. Rxc8 {[%emt 0:00:46]} Qxc8 {[%emt 0:00:11]} 16. Rc1 {[%emt 0:00:36]} Qb7 {[%emt 0:00:25]} (16... Qb8 $11) 17. Qc2 $16 {[%emt 0:01:41] Hoping for Qc8+.} Ke7 {[%emt 0:16:51]} 18. Nd4 {[%emt 0:01:18]} Re8 {[%emt 0:00:06]} 19. Qc6 {[%emt 0:01:47]} Qxc6 {[%emt 0:00:38]} 20. Nxf5+ {[%emt 0:00:41]} (20. Nxc6+ $6 Kf8 $11) 20... exf5 {[%emt 0:00:01]} 21. Rxc6 {[%emt 0:00:05]} Nb8 {[%emt 0:00:09]} 22. Rc2 {[%emt 0:00:59] White is more active.} (22. Rb6 $142 {And now Nc3 would win.} Rc8 23. Nc3) 22... Kd7 {[%emt 0:02:53]} 23. Bd4 {[%emt 0:01:45] A strong pair of Bishops.} (23. a4 $16) 23... Be5 $11 {[%emt 0:01:57]} 24. Bxe5 {[%emt 0:01:43]} Rxe5 {[%emt 0:00:03]} 25. a3 {[%emt 0:01:47]} Nc6 {[%emt 0:02:52]} 26. e3 {[%emt 0:00:04] Repels Nd4} Re6 {[%emt 0:02:40]} 27. Nd2 {[%emt 0:00:55]} Ne5 {[%emt 0:00:33]} 28. Nb3 {[%emt 0:00:52]} Rb6 {[%emt 0:01:46]} (28... Nxd3 $2 {too greedy.} 29. Bf1 (29. Rd2 Ne5 $16) 29... Ne5 (29... Ne1 $2 30. Nc5+ Ke7 31. Rc1 $18) 30. Nc5+ Kd8 31. Nxe6+ fxe6 32. a4 $18) 29. Bf1 {[%emt 0:01:17]} Kd6 {[%emt 0:01:09]} 30. Be2 {[%emt 0:00:31]} Nc6 {[%emt 0:00:56]} 31. d4 {[%emt 0:00:58]} a5 {[%emt 0:01:22][%cal Ba6a5,Ba5a4][%mdl 32]} 32. Rc5 {[%emt 0:02:58]} a4 {[%emt 0:00:03]} 33. Nc1 {[%emt 0:00:26]} (33. Rxb5 $2 {is the wrong capture.} Rxb5 34. Bxb5 axb3 $19) 33... Na7 {[%emt 0:01:29]} 34. Na2 {[%emt 0:00:15]} Ne4 {[%emt 0:02:01]} 35. Rc2 $36 {[%emt 0:00:39][%mdl 2048] White is in control.} Rc6 {[%emt 0:00:43]} 36. Rxc6+ {[%emt 0:02:21]} Kxc6 $16 {[%emt 0:00:02][%mdl 4096] Endgame. KBN-KNN} 37. Nb4+ {[%emt 0:00:12]} Kd6 {[%emt 0:00:01]} 38. Kf1 {[%emt 0:00:20]} Nd2+ {[%emt 0:01:37]} 39. Ke1 {[%emt 0:00:11]} Nc4 {[%emt 0:00:03]} 40. Bxc4 {[%emt 0:01:11]} bxc4 $14 {[%emt 0:01:10] KN-KN} (40... dxc4 $14 41. f3 g6) 41. Na6 {[%emt 0:09:06]} (41. Kd2 $142) 41... c3 $16 {[%emt 0:02:32] [#]} 42. bxc3 {[%emt 0:03:12]} (42. Kd1 $1 $16) 42... Nb5 $11 {[%emt 0:00:11][%csl LRa3,LRc3] The position is equal.} 43. Nc5 {[%emt 0:00:52]} Nxc3 {[%emt 0:00:25]} 44. Kd2 {[%emt 0:00:51]} Nb1+ {[%emt 0:00:16]} 45. Kd3 {[%emt 0:00:08]} Nxa3 {[%emt 0:00:06]} 46. Nxa4 {[%emt 0:00:05]} Nc4 {[%emt 0:00:25]} 47. f3 {[%emt 0:02:08]} Na5 {[%emt 0:05:22]} 48. Nc3 {[%emt 0:02:27]} Ke6 {[%emt 0:03:48]} 49. Ne2 {[%emt 0:03:04] Weighted Error Value: White=0.13 (very precise) /Black=0.18 (very precise) .  Mistake:       	White=4     	Black=3      Inaccurate:     	White=3     	Black=3      OK:         	White=17    	Black=18     Best:        	White=2     	Black=6      Strong:       	White=1     	---} 1/2-1/2